[Event "*** Titled Tuesday Blitz"]
[Site "Chess.com"]
[Date "2021.02.02"]
[Round "2"]
[White "A-Fier"]
[Black "IriBu"]
[Result "1-0"]
[WhiteElo "2853"]
[BlackElo "2542"]
[TimeControl "180+1"]
[EndTime "10:22:54 PST"]
[Termination "A-Fier won by resignation"]

1. d4 {[%clk 0:03:00.9]} 1... Nf6 {[%clk 0:02:59.5]} 2. c4 {[%clk 0:03:01.1]}
2... e6 {[%clk 0:02:59.8]} 3. Nf3 {[%clk 0:03:00.7]} 3... Bb4+ {[%clk
0:02:59.1]} 4. Bd2 {[%clk 0:02:59.9]} 4... Qe7 {[%clk 0:02:58.5]} 5. g3 {[%clk
0:02:59.7]} 5... Bxd2+ {[%clk 0:02:58.2]} 6. Qxd2 {[%clk 0:02:57.6]} 6... Nc6
{[%clk 0:02:58.3]} 7. Nc3 {[%clk 0:02:54]} 7... d5 {[%clk 0:02:57.5]} 8. cxd5
{[%clk 0:02:47.3]} 8... exd5 {[%clk 0:02:57.3]} 9. Bg2 {[%clk 0:02:47.9]} 9...
O-O {[%clk 0:02:57.2]} 10. O-O {[%clk 0:02:48.4]} 10... Bf5 {[%clk 0:02:57]} 11.
e3 {[%clk 0:02:47.6]} 11... a6 {[%clk 0:02:55.4]} 12. Rac1 {[%clk 0:02:47]}
12... Rfe8 {[%clk 0:02:51.9]} 13. Ne1 {[%clk 0:02:44.1]} 13... Rad8 {[%clk
0:02:50.2]} 14. Nd3 {[%clk 0:02:44.1]} 14... Bxd3 {[%clk 0:02:41.9]} 15. Qxd3
{[%clk 0:02:45]} 15... Na7 {[%clk 0:02:41.3]} 16. a3 {[%clk 0:02:38.2]} 16... c6
{[%clk 0:02:37.8]} 17. b4 {[%clk 0:02:38.3]} 17... Nb5 {[%clk 0:02:37.8]} 18.
Na4 {[%clk 0:02:38.4]} 18... Nd6 {[%clk 0:02:36.2]} 19. Nc5 {[%clk 0:02:38.5]}
19... Nfe4 {[%clk 0:02:34.1]} 20. a4 {[%clk 0:02:38.7]} 20... Nxc5 {[%clk
0:02:30.8]} 21. bxc5 {[%clk 0:02:36.5]} 21... Ne4 {[%clk 0:02:28.5]} 22. Rb1
{[%clk 0:02:33.2]} 22... Rd7 {[%clk 0:02:28.6]} 23. Rb2 {[%clk 0:02:31.7]} 23...
g6 {[%clk 0:02:29]} 24. Rfb1 {[%clk 0:02:31.5]} 24... f5 {[%clk 0:02:27.8]} 25.
Rb4 {[%clk 0:02:30.6]} 25... Qf7 {[%clk 0:02:22.6]} 26. Qb3 {[%clk 0:02:30.3]}
26... Ree7 {[%clk 0:02:23]} 27. Qc2 {[%clk 0:02:23.3]} 27... h5 {[%clk
0:02:22.3]} 28. h4 {[%clk 0:02:22]} 28... Nf6 {[%clk 0:02:19.3]} 29. Bf3 {[%clk
0:02:21.2]} 29... Ne4 {[%clk 0:02:18.1]} 30. Kg2 {[%clk 0:02:20.4]} 30... Kg7
{[%clk 0:02:18.5]} 31. Re1 {[%clk 0:02:19]} 31... Nf6 {[%clk 0:02:18.1]} 32. Be2
{[%clk 0:02:18.3]} 32... Ne4 {[%clk 0:02:14.9]} 33. Bd3 {[%clk 0:02:18.5]} 33...
Nf6 {[%clk 0:02:07.9]} 34. Rbb1 {[%clk 0:02:18.3]} 34... Rd8 {[%clk 0:02:06.1]}
35. Re2 {[%clk 0:02:18.4]} 35... Rde8 {[%clk 0:02:04.7]} 36. Rbe1 {[%clk
0:02:18.3]} 36... Ne4 {[%clk 0:02:02]} 37. a5 {[%clk 0:02:16]} 37... Nf6 {[%clk
0:02:00.9]} 38. Rg1 {[%clk 0:02:14.2]} 38... Kf8 {[%clk 0:01:57.4]} 39. Kf1
{[%clk 0:02:14.3]} 39... Ng4 {[%clk 0:01:56.8]} 40. Ke1 {[%clk 0:02:13.6]} 40...
Re6 {[%clk 0:01:51.2]} 41. Kd1 {[%clk 0:02:13.6]} 41... Qc7 {[%clk 0:01:51.2]}
42. Qd2 {[%clk 0:02:11.4]} 42... Qf7 {[%clk 0:01:43.1]} 43. Kc2 {[%clk
0:02:11.5]} 43... R8e7 {[%clk 0:01:42.2]} 44. Kb3 {[%clk 0:02:11.7]} 44... Qe8
{[%clk 0:01:40.8]} 45. Kb4 {[%clk 0:02:11.8]} 45... Qf7 {[%clk 0:01:38]} 46. Rf1
{[%clk 0:02:10.9]} 46... Kg7 {[%clk 0:01:32.4]} 47. Rfe1 {[%clk 0:02:11]} 47...
Qe8 {[%clk 0:01:31.1]} 48. Bb1 {[%clk 0:02:10.5]} 48... Kg8 {[%clk 0:01:27.9]}
49. Bc2 {[%clk 0:02:06.3]} 49... Kg7 {[%clk 0:01:28.2]} 50. Qd3 {[%clk
0:01:59.3]} 50... Kg8 {[%clk 0:01:20.2]} 51. Rd2 {[%clk 0:01:56.1]} 51... Kg7
{[%clk 0:01:20.2]} 52. Bd1 {[%clk 0:01:56.4]} 52... Nf6 {[%clk 0:01:18.4]} 53.
Bf3 {[%clk 0:01:56.3]} 53... Ne4 {[%clk 0:01:17.3]} 54. Bxe4 {[%clk 0:01:56.5]}
54... fxe4 {[%clk 0:01:16.5]} 55. Qe2 {[%clk 0:01:54.2]} 55... Qf7 {[%clk
0:01:12.6]} 56. g4 {[%clk 0:01:54.2]} 56... Qf3 {[%clk 0:01:10.9]} 57. Qxf3
{[%clk 0:01:32.6]} 57... exf3 {[%clk 0:01:11.1]} 58. gxh5 {[%clk 0:01:33.5]}
58... gxh5 {[%clk 0:01:11.6]} 59. Rg1+ {[%clk 0:01:32.6]} 59... Rg6 {[%clk
0:01:04.8]} 60. Rdd1 {[%clk 0:01:32.7]} 60... Re4 {[%clk 0:01:02.1]} 61. Rh1
{[%clk 0:01:24.3]} 61... Rg2 {[%clk 0:00:56.4]} 62. Rdf1 {[%clk 0:01:24.3]}
62... Re7 {[%clk 0:00:52.7]} 63. Rh3 {[%clk 0:01:24]} 63... Rf7 {[%clk
0:00:52.7]} 64. Kc3 {[%clk 0:01:24.5]} 64... Rg4 {[%clk 0:00:49]} 65. Kd3 {[%clk
0:01:24.8]} 65... Kh6 {[%clk 0:00:47.7]} 66. Rfh1 {[%clk 0:01:15.3]} 66... Rf6
{[%clk 0:00:45.8]} 67. Kd2 {[%clk 0:01:15.2]} 67... Rf5 {[%clk 0:00:44.1]} 68.
Ke1 {[%clk 0:01:15.4]} 68... Kg6 {[%clk 0:00:42.2]} 69. Rg3 {[%clk 0:01:13]}
69... Rxg3 {[%clk 0:00:20.7]} 70. fxg3 {[%clk 0:01:12.8]} 70... Rf7 {[%clk
0:00:21.4]} 71. Kf2 {[%clk 0:01:12.3]} 71... Kf5 {[%clk 0:00:18]} 72. Kxf3
{[%clk 0:01:12.3]} 72... Ke6+ {[%clk 0:00:18.5]} 73. Ke2 {[%clk 0:01:12.4]}
73... Rg7 {[%clk 0:00:17.9]} 74. Rg1 {[%clk 0:01:12.1]} 74... Kf5 {[%clk
0:00:18.1]} 75. Kf3 {[%clk 0:01:12.2]} 75... Rg4 {[%clk 0:00:17.9]} 76. Re1
{[%clk 0:01:10.5]} 76... Re4 {[%clk 0:00:17.5]} 77. Re2 {[%clk 0:01:11]} 77...
Kf6 {[%clk 0:00:16.4]} 78. Rb2 {[%clk 0:01:10.1]} 78... Re7 {[%clk 0:00:16]} 79.
Rb3 {[%clk 0:01:10.4]} 79... Kf5 {[%clk 0:00:16.1]} 80. Rd3 {[%clk 0:01:10.8]}
80... Rf7 {[%clk 0:00:16]} 81. Rc3 {[%clk 0:01:09.7]} 81... Ke6+ {[%clk
0:00:16.1]} 82. Ke2 {[%clk 0:01:09]} 82... Kf5 {[%clk 0:00:16.5]} 83. Kf3 {[%clk
0:01:00.2]} 83... Ke6+ {[%clk 0:00:16.7]} 84. Kg2 {[%clk 0:01:00.5]} 84... Kf5
{[%clk 0:00:17.2]} 85. Rb3 {[%clk 0:00:51.2]} 85... Kg4 {[%clk 0:00:16.5]} 86.
Rb2 {[%clk 0:00:45.4]} 86... Re7 {[%clk 0:00:16.2]} 87. Re2 {[%clk 0:00:43.5]}
87... Kf5 {[%clk 0:00:11.2]} 88. Rf2+ {[%clk 0:00:41.7]} 88... Ke4 {[%clk
0:00:11]} 89. Rf3 {[%clk 0:00:39.5]} 89... Rg7 {[%clk 0:00:09.3]} 90. Kf2 {[%clk
0:00:39.9]} 90... Kd3 {[%clk 0:00:06.7]} 91. Rf5 {[%clk 0:00:37.9]} 91... Rh7
{[%clk 0:00:06.9]} 92. Rf4 {[%clk 0:00:34.3]} 92... Re7 {[%clk 0:00:04]} 93. Rf5
{[%clk 0:00:29.2]} 93... Rh7 {[%clk 0:00:04]} 94. Kf3 {[%clk 0:00:28]} 94... Kc4
{[%clk 0:00:04.4]} 95. g4 {[%clk 0:00:26.5]} 95... hxg4+ {[%clk 0:00:04]} 96.
Kxg4 {[%clk 0:00:27.4]} 96... Kb5 {[%clk 0:00:04.5]} 97. Rf1 {[%clk 0:00:26]}
97... Kxa5 {[%clk 0:00:04.3]} 98. Rb1 {[%clk 0:00:26.6]} 98... Ka4 {[%clk
0:00:03.9]} 99. h5 {[%clk 0:00:26.8]} 99... Ka3 {[%clk 0:00:04.4]} 100. Kg5
{[%clk 0:00:26.7]} 100... Ka2 {[%clk 0:00:05]} 101. Rb6 {[%clk 0:00:25.1]}
101... Re7 {[%clk 0:00:04.1]} 102. h6 {[%clk 0:00:25]} 102... Rxe3 {[%clk
0:00:04.4]} 103. h7 {[%clk 0:00:23.8]} 103... Rh3 {[%clk 0:00:04.5]} 104. Rxb7
{[%clk 0:00:24.3]} 104... a5 {[%clk 0:00:04.2]} 105. Kg6 {[%clk 0:00:24.8]}
105... a4 {[%clk 0:00:04.5]} 106. Kg7 {[%clk 0:00:19.2]} 106... Rg3+ {[%clk
0:00:04.6]} 107. Kf8 {[%clk 0:00:18.6]} 107... Rh3 {[%clk 0:00:04.7]} 108. Kg8
{[%clk 0:00:18.9]} 108... a3 {[%clk 0:00:04.8]} 109. h8=Q {[%clk 0:00:18.8]}
109... Rxh8+ {[%clk 0:00:05.3]} 110. Kxh8 {[%clk 0:00:19.7]} 110... Ka1 {[%clk
0:00:05.8]} 111. Rb6 {[%clk 0:00:20.3]} 111... a2 {[%clk 0:00:06.3]} 112. Rxc6
{[%clk 0:00:21]} 112... Kb2 {[%clk 0:00:06.8]} 113. Ra6 {[%clk 0:00:21.8]}
113... Kc3 {[%clk 0:00:06.2]} 114. Rxa2 {[%clk 0:00:21.9]} 114... Kxd4 {[%clk
0:00:07.1]} 115. c6 {[%clk 0:00:22.4]} 115... Kc3 {[%clk 0:00:06.8]} 116. c7
{[%clk 0:00:22.8]} 116... Kb3 {[%clk 0:00:07.5]} 117. Rd2 {[%clk 0:00:22.2]} 1-0

[Event "*** Titled Tuesday Blitz"]
[Site "Chess.com"]
[Date "2021.02.02"]
[Round "2"]
[White "andriipalchuk"]
[Black "Happy1712Drummer"]
[Result "0-1"]
[WhiteElo "2599"]
[BlackElo "2348"]
[TimeControl "180+1"]
[EndTime "10:23:04 PST"]
[Termination "Happy1712Drummer won by resignation"]

1. e4 {[%clk 0:03:00.9]} 1... e6 {[%clk 0:03:00.9]} 2. d4 {[%clk 0:03:00]} 2...
d5 {[%clk 0:03:01.8]} 3. Nd2 {[%clk 0:03:00.6]} 3... Nc6 {[%clk 0:02:58]} 4.
Ngf3 {[%clk 0:03:00]} 4... Nf6 {[%clk 0:02:51]} 5. e5 {[%clk 0:03:00.4]} 5...
Nd7 {[%clk 0:02:49.2]} 6. Bd3 {[%clk 0:03:00.7]} 6... f6 {[%clk 0:02:26.2]} 7.
exf6 {[%clk 0:02:57.1]} 7... Nxf6 {[%clk 0:02:20.6]} 8. O-O {[%clk 0:02:55]}
8... Nb4 {[%clk 0:02:10.4]} 9. Be2 {[%clk 0:02:51.1]} 9... c5 {[%clk 0:02:08.2]}
10. c4 {[%clk 0:02:33.6]} 10... cxd4 {[%clk 0:01:58.4]} 11. a3 {[%clk
0:01:39.8]} 11... Nc6 {[%clk 0:01:56.5]} 12. cxd5 {[%clk 0:01:38.8]} 12... Nxd5
{[%clk 0:01:53.2]} 13. Nb3 {[%clk 0:01:35.8]} 13... Be7 {[%clk 0:01:49.5]} 14.
Nfxd4 {[%clk 0:01:33.4]} 14... Nxd4 {[%clk 0:01:46.9]} 15. Nxd4 {[%clk
0:01:32.1]} 15... O-O {[%clk 0:01:46.3]} 16. Bf3 {[%clk 0:01:32.7]} 16... Bf6
{[%clk 0:01:43.2]} 17. Re1 {[%clk 0:01:29.2]} 17... Nb6 {[%clk 0:01:30.2]} 18.
Nxe6 {[%clk 0:01:14.4]} 18... Qxd1 {[%clk 0:01:25.9]} 19. Bxd1 {[%clk
0:01:15.3]} 19... Re8 {[%clk 0:01:15.1]} 20. Bb3 {[%clk 0:01:14]} 20... Kh8
{[%clk 0:01:00.3]} 21. a4 {[%clk 0:00:38.3]} 21... Bxe6 {[%clk 0:00:43.9]} 22.
Rxe6 {[%clk 0:00:36]} 22... Rxe6 {[%clk 0:00:41.9]} 23. Bxe6 {[%clk 0:00:36.9]}
23... Re8 {[%clk 0:00:41.4]} 24. Be3 {[%clk 0:00:27.4]} 24... Rxe6 {[%clk
0:00:38.6]} 25. Rc1 {[%clk 0:00:28]} 25... Rc6 {[%clk 0:00:32.4]} 26. Rd1 {[%clk
0:00:19.4]} 26... Nxa4 {[%clk 0:00:26.8]} 27. Rd7 {[%clk 0:00:19.1]} 27... Nxb2
{[%clk 0:00:17.2]} 28. Rxb7 {[%clk 0:00:17.6]} 28... h6 {[%clk 0:00:17.1]} 29.
Rxa7 {[%clk 0:00:17.5]} 29... Nc4 {[%clk 0:00:15]} 30. Ra8+ {[%clk 0:00:17.5]}
30... Kh7 {[%clk 0:00:14.6]} 31. Bf4 {[%clk 0:00:18]} 31... Re6 {[%clk
0:00:13.6]} 32. g3 {[%clk 0:00:17.2]} 32... Ne5 {[%clk 0:00:13.7]} 33. Kg2
{[%clk 0:00:17.1]} 33... Ng6 {[%clk 0:00:13.3]} 34. Be3 {[%clk 0:00:17.3]} 34...
Ne7 {[%clk 0:00:12.9]} 35. Ra2 {[%clk 0:00:16.3]} 35... Nd5 {[%clk 0:00:13.2]}
36. Bc5 {[%clk 0:00:16.8]} 36... Rc6 {[%clk 0:00:12.2]} 37. Ba7 {[%clk
0:00:16.3]} 37... Nb4 {[%clk 0:00:12]} 38. Ra4 {[%clk 0:00:15.9]} 38... Nd3
{[%clk 0:00:11.7]} 39. Be3 {[%clk 0:00:15.4]} 39... Ne1+ {[%clk 0:00:11.2]} 40.
Kf1 {[%clk 0:00:15.3]} 40... Nc2 {[%clk 0:00:12.1]} 41. Bd2 {[%clk 0:00:13.8]}
41... Nd4 {[%clk 0:00:11.9]} 42. Be3 {[%clk 0:00:13.3]} 42... Nf5 {[%clk
0:00:11.3]} 43. Bf4 {[%clk 0:00:13.3]} 43... Rc2 {[%clk 0:00:11.7]} 44. Re4
{[%clk 0:00:12.8]} 44... Bd4 {[%clk 0:00:10.1]} 45. Re2 {[%clk 0:00:10.7]} 45...
Rxe2 {[%clk 0:00:09.5]} 46. Kxe2 {[%clk 0:00:11.6]} 46... Bf6 {[%clk 0:00:09.2]}
47. Kf3 {[%clk 0:00:11.2]} 47... Nd4+ {[%clk 0:00:09.4]} 48. Ke4 {[%clk
0:00:11.4]} 48... Ne6 {[%clk 0:00:10.3]} 49. Be3 {[%clk 0:00:11.7]} 49... Kg6
{[%clk 0:00:10.3]} 50. f4 {[%clk 0:00:11.7]} 50... Kf7 {[%clk 0:00:10.6]} 51. h4
{[%clk 0:00:11.7]} 51... h5 {[%clk 0:00:08.8]} 52. Kf3 {[%clk 0:00:11]} 52... g6
{[%clk 0:00:08.4]} 53. Bf2 {[%clk 0:00:08.8]} 53... Ng7 {[%clk 0:00:07.6]} 54.
g4 {[%clk 0:00:08.9]} 54... hxg4+ {[%clk 0:00:07.2]} 55. Kxg4 {[%clk 0:00:09.8]}
55... Ke6 {[%clk 0:00:07.4]} 56. Be1 {[%clk 0:00:08.6]} 56... Bd4 {[%clk
0:00:06.6]} 57. Bg3 {[%clk 0:00:08.7]} 57... Kf6 {[%clk 0:00:06.4]} 58. Be1
{[%clk 0:00:08.6]} 58... Bb2 {[%clk 0:00:05.8]} 59. Bb4 {[%clk 0:00:08.2]} 59...
Kf7 {[%clk 0:00:05.3]} 60. Bc5 {[%clk 0:00:08.2]} 60... Bf6 {[%clk 0:00:05.6]}
61. Bf2 {[%clk 0:00:08.5]} 61... Nf5 {[%clk 0:00:06]} 62. h5 {[%clk 0:00:08.5]}
62... Nh6+ {[%clk 0:00:06.6]} 63. Kf3 {[%clk 0:00:08.3]} 63... gxh5 {[%clk
0:00:07.5]} 64. Ke4 {[%clk 0:00:08.5]} 64... Kg6 {[%clk 0:00:08.1]} 65. Kf3
{[%clk 0:00:08.5]} 65... Nf5 {[%clk 0:00:08.6]} 66. Be1 {[%clk 0:00:08.6]} 66...
Bh4 {[%clk 0:00:08.4]} 67. Bd2 {[%clk 0:00:09]} 67... Bf6 {[%clk 0:00:07.9]} 68.
Be1 {[%clk 0:00:09.2]} 68... Bd4 {[%clk 0:00:07.6]} 69. Ke4 {[%clk 0:00:08.4]}
69... Bb6 {[%clk 0:00:07.1]} 70. Kf3 {[%clk 0:00:08.7]} 70... Bc7 {[%clk
0:00:06.9]} 71. Ke4 {[%clk 0:00:09.3]} 71... Bd6 {[%clk 0:00:06.3]} 72. Kf3
{[%clk 0:00:09.8]} 72... Ng7 {[%clk 0:00:06]} 73. Ke4 {[%clk 0:00:10.2]} 73...
Ne8 {[%clk 0:00:05.4]} 74. f5+ {[%clk 0:00:10.3]} 74... Kf7 {[%clk 0:00:05.3]}
75. Bh4 {[%clk 0:00:09.1]} 75... Nf6+ {[%clk 0:00:05.2]} 76. Kf3 {[%clk
0:00:09.7]} 76... Be5 {[%clk 0:00:05.4]} 77. Bg5 {[%clk 0:00:09]} 77... Nh7
{[%clk 0:00:05.2]} 78. Bh4 {[%clk 0:00:09.5]} 78... Bf6 {[%clk 0:00:05.3]} 79.
Bg3 {[%clk 0:00:09.9]} 79... Bg5 {[%clk 0:00:05.6]} 80. Ke4 {[%clk 0:00:10.1]}
80... Nf6+ {[%clk 0:00:05.7]} 81. Kf3 {[%clk 0:00:09.9]} 81... Nd5 {[%clk
0:00:06.3]} 82. Ke4 {[%clk 0:00:09.9]} 82... Ne7 {[%clk 0:00:06.4]} 83. Bf2
{[%clk 0:00:09]} 83... Ng8 {[%clk 0:00:06.4]} 84. Bg3 {[%clk 0:00:06.5]} 84...
Nf6+ {[%clk 0:00:07.3]} 85. Kf3 {[%clk 0:00:07.2]} 85... Ng4 {[%clk 0:00:07.1]}
86. Ke4 {[%clk 0:00:07]} 86... Nh6 {[%clk 0:00:07.6]} 87. Kf3 {[%clk 0:00:07.3]}
87... Nxf5 {[%clk 0:00:06.6]} 88. Bf2 {[%clk 0:00:06.7]} 88... Ne7 {[%clk
0:00:06.8]} 89. Ke4 {[%clk 0:00:06.9]} 89... Ng6 {[%clk 0:00:07]} 90. Kf3 {[%clk
0:00:07.5]} 90... Ke6 {[%clk 0:00:06.9]} 91. Ke4 {[%clk 0:00:07.8]} 91... Nf8
{[%clk 0:00:06.8]} 92. Kf3 {[%clk 0:00:08.1]} 92... Nh7 {[%clk 0:00:07.3]} 93.
Ke4 {[%clk 0:00:07.9]} 93... Nf6+ {[%clk 0:00:07.1]} 94. Kf3 {[%clk 0:00:07.7]}
94... Kf5 {[%clk 0:00:08]} 95. Be1 {[%clk 0:00:08.3]} 95... Ng4 {[%clk
0:00:08.1]} 96. Kg2 {[%clk 0:00:08.6]} 96... Ne3+ {[%clk 0:00:07.8]} 97. Kh1
{[%clk 0:00:08.9]} 97... Nc2 {[%clk 0:00:07.7]} 98. Bf2 {[%clk 0:00:09.2]} 98...
Nb4 {[%clk 0:00:06.1]} 99. Be1 {[%clk 0:00:09.4]} 99... Nd3 {[%clk 0:00:06.7]}
100. Bg3 {[%clk 0:00:10.1]} 100... Kg4 {[%clk 0:00:06.8]} 101. Bb8 {[%clk
0:00:09.8]} 101... h4 {[%clk 0:00:06.8]} 102. Kg2 {[%clk 0:00:10.1]} 102... h3+
{[%clk 0:00:07]} 103. Kh1 {[%clk 0:00:10.7]} 103... Bf4 {[%clk 0:00:07]} 104.
Ba7 {[%clk 0:00:11.3]} 104... Kf3 {[%clk 0:00:06.8]} 105. Bg1 {[%clk 0:00:11.2]}
105... Be3 {[%clk 0:00:06.4]} 106. Kh2 {[%clk 0:00:10.9]} 106... Nf4 {[%clk
0:00:05.4]} 107. Kh1 {[%clk 0:00:09.2]} 107... Bxg1 {[%clk 0:00:04.1]} 108. Kxg1
{[%clk 0:00:10.1]} 108... Kg3 {[%clk 0:00:04.2]} 109. Kh1 {[%clk 0:00:11]}
109... Ng6 {[%clk 0:00:03.7]} 110. Kg1 {[%clk 0:00:11.5]} 110... Nh4 {[%clk
0:00:03.4]} 111. Kh1 {[%clk 0:00:12.4]} 111... Nf5 {[%clk 0:00:02.9]} 112. Kg1
{[%clk 0:00:13.3]} 112... Kg4 {[%clk 0:00:02.7]} 113. Kh2 {[%clk 0:00:13.6]}
113... Nd4 {[%clk 0:00:02.8]} 114. Kh1 {[%clk 0:00:14.5]} 114... Kg3 {[%clk
0:00:02.8]} 115. Kg1 {[%clk 0:00:14.7]} 115... Nb3 {[%clk 0:00:03.2]} 116. Kh1
{[%clk 0:00:15.6]} 116... Nd2 {[%clk 0:00:03.6]} 117. Kg1 {[%clk 0:00:16.2]}
117... Ne4 {[%clk 0:00:03.9]} 118. Kh1 {[%clk 0:00:17.1]} 118... Nf2+ {[%clk
0:00:04]} 119. Kg1 {[%clk 0:00:18]} 119... h2+ {[%clk 0:00:04.6]} 120. Kf1
{[%clk 0:00:18.9]} 120... h1=Q+ {[%clk 0:00:04.5]} 0-1